bitfinex/quotes_ETHUSD_20220309
["timestamp","ask_amount","ask_price","bid_price","bid_amount"]
[1646807688326,0.00191701,2712.0,2711.8,1.51182766]
[1646807688524,0.00191701,2712.0,2711.8,2.43389176]
[1646807688724,0.00191701,2712.0,2711.9,1.51182766]
[1646807689379,3.5,2712.8,2711.9,1.51182766]
[1646807689580,0.00191701,2712.1,2711.9,1.51182766]
[1646807689980,0.00191701,2712.1,2712.0,1.51182766]
[1646807690380,3.5,2712.8,2712.0,1.51182766]
[1646807690582,3.5,2712.8,2711.7,2.36691561]
[1646807690779,0.00191793,2712.2,2711.8,1.51171876]
[1646807691580,0.00767008,2712.8,2711.8,1.51171876]
[1646807691781,3.5,2712.8,2711.8,1.51171876]
[1646807691981,0.00191793,2712.1,2711.8,1.51171876]
[1646807692782,4.85523247,2712.8,2711.8,1.51171876]
[1646807693225,0.00191793,2712.1,2711.8,1.51171876]
[1646807694122,4.85523247,2712.8,2711.8,1.51171876]
[1646807694328,0.00191779,2712.1,2711.8,1.51171876]
[1646807694927,0.00191779,2712.1,2711.8,1.51022029]
[1646807695328,4.85523247,2712.8,2711.8,1.51022029]
[1646807695529,0.00191779,2712.1,2711.8,1.51022029]
[1646807696530,3.5,2712.6,2711.8,1.51022029]
[1646807696531,4.85523247,2712.6,2711.8,1.51022029]
[1646807696773,0.00191779,2712.1,2711.8,1.51022029]
[1646807697173,0.00191779,2712.1,2711.7,2.36691561]
[1646807697373,0.00191779,2712.1,2711.7,1.1861]
[1646807697575,3.5,2712.6,2711.7,1.1861]
[1646807697975,0.00191781,2712.0,2711.7,1.1861]
[1646807698377,0.00191781,2712.0,2711.9,1.19254818]
[1646807698576,0.00191781,2712.0,2711.7,1.1861]
[1646807698975,3.5,2712.6,2711.7,1.1861]
[1646807699175,0.00191781,2712.1,2711.7,1.1861]
[1646807699979,0.08164,2712.7,2712.0,0.97583875]
[1646807700180,0.08164,2712.7,2711.8,3.5]
[1646807700434,0.00191781,2712.0,2711.8,3.5]
[1646807700625,0.00191781,2712.0,2711.7,1.1861]
[1646807700823,0.00191781,2712.0,2711.7,4.6861]
[1646807701231,1.65523247,2712.8,2711.9,0.99935686]
[1646807701629,0.00191781,2712.0,2711.9,0.99935686]
[1646807701829,0.00191781,2712.0,2711.7,1.1861]
[1646807702433,1.35523247,2712.7,2711.7,1.1861]
[1646807702632,0.5586592,2712.8,2711.7,4.6861]
[1646807702633,0.00191781,2712.0,2711.7,4.6861]
[1646807702832,0.00191781,2712.0,2711.8,1.10963144]
[1646807703736,1.35523247,2712.7,2711.8,1.10963144]
[1646807703934,0.00191781,2712.0,2711.8,1.10963144]
[1646807704777,1.35523247,2712.7,2711.8,1.10963144]
[1646807704977,1.43688247,2712.7,2711.8,1.10963144]
[1646807705181,0.00191782,2712.0,2711.8,1.10963144]
[1646807705979,1.43688247,2712.7,2711.8,1.10963144]
[1646807706381,0.00191782,2712.0,2711.7,1.1861]
[1646807707279,1.43688247,2712.7,2711.7,1.1861]
[1646807707481,0.00191782,2712.0,2711.7,1.1861]
[1646807707680,0.00191782,2712.0,2711.8,1.22211462]
[1646807708632,0.00191782,2712.0,2711.7,1.1861]
[1646807708633,0.00191781,2712.0,2711.7,1.1861]
[1646807709035,1.30715028,2712.6,2711.7,1.1861]
[1646807709432,0.1615173,2712.5,2711.7,1.1861]
[1646807709635,0.1615173,2712.5,2711.8,1.07881547]
[1646807710237,0.1615173,2712.5,2711.7,1.1861]
[1646807711138,1.30715028,2712.6,2711.7,1.1861]
[1646807711774,0.08165,2712.7,2711.7,1.1861]
[1646807712378,0.08165,2712.7,2712.0,0.88549016]
[1646807713481,0.00230121,2712.5,2712.0,0.88549016]
[1646807714483,0.08164,2712.8,2712.0,0.88549016]
[1646807714683,0.00230121,2712.4,2712.0,0.88549016]
[1646807715083,0.00230121,2712.4,2712.1,1.51168436]
[1646807715283,0.00230121,2712.4,2712.0,0.88549016]
[1646807715831,1.87640929,2712.8,2712.0,0.88549016]
[1646807715832,1.86720583,2712.8,2712.0,0.88549016]
[1646807716031,1.86720583,2712.8,2712.1,1.51170702]
[1646807716032,0.00230121,2712.4,2712.1,1.51170702]
[1646807716231,0.00230121,2712.4,2712.0,0.88549016]
[1646807716635,0.00230121,2712.4,2712.1,1.51171342]
[1646807716831,1.87640929,2712.8,2712.1,1.51171342]
[1646807717032,0.00207307,2712.3,2712.0,0.88549016]
[1646807717833,0.00207307,2712.3,2712.1,1.5117036]
[1646807718034,1.35843086,2712.6,2712.1,1.5117036]
[1646807718334,1.35843086,2712.6,2712.1,5.0117036]
[1646807718335,0.00207307,2712.3,2712.1,5.0117036]
[1646807718538,0.00207307,2712.3,2712.2,1.5117036]
[1646807718733,0.00207307,2712.3,2712.1,1.5117036]
[1646807719178,1.35843086,2712.8,2712.2,3.5]
[1646807719378,1.35843086,2712.8,2712.5,1.02517956]
[1646807719577,1.36672177,2712.8,2712.2,3.5]
[1646807719777,1.36672177,2712.8,2712.3,1.51147327]
[1646807720379,1.35843086,2712.8,2712.3,1.51147327]
[1646807720579,1.35843086,2712.9,2712.4,3.5]
[1646807720780,2.93706583,2713.2,2712.4,3.5]
[1646807720781,0.00230121,2712.7,2712.5,1.51147327]
[1646807720980,0.00230121,2712.7,2712.6,1.10486]
[1646807721182,0.00230121,2712.7,2712.6,2.61633327]
[1646807721386,0.00120251,2712.7,2712.6,2.61633327]
[1646807721581,1.35843086,2713.1,2712.6,2.61633327]
[1646807721784,1.35843086,2713.1,2712.4,1.843593]
[1646807722080,2.88,2713.4,2712.3,1.1764]
[1646807722081,1.35843086,2713.0,2712.3,1.1764]
[1646807722285,1.35843086,2712.9,2712.4,1.51140118]
[1646807722487,1.35843086,2712.9,2712.3,1.1764]
[1646807722936,1.35843086,2712.8,2712.3,2.13273414]
[1646807723529,1.28939,2713.3,2712.3,2.13273414]
[1646807723530,1.35843086,2712.9,2712.4,1.51142872]
[1646807724228,1.86724583,2713.2,2712.4,5.01142872]
[1646807724229,1.35843086,2713.0,2712.4,5.01142872]
[1646807724433,1.35843086,2713.1,2712.8,1.06181885]
[1646807724830,1.35843086,2713.0,2712.3,3.0199891]
[1646807725030,1.35843086,2713.0,2712.4,1.51132212]
[1646807725231,1.35843086,2713.0,2712.4,5.01132212]
[1646807725432,0.00229846,2712.8,2712.4,3.5]
[1646807725731,0.00229846,2712.8,2712.3,1.5446]
[1646807725933,0.00229846,2712.8,2712.6,0.89340079]
[1646807726533,1.35843086,2713.0,2712.6,0.89340079]
[1646807726778,0.00229846,2712.8,2712.3,1.1764]
[1646807726982,0.00229846,2712.8,2712.4,1.51131667]
[1646807727583,1.35843086,2713.0,2712.4,5.01131667]
[1646807727782,1.35843086,2713.0,2712.9,0.90192732]
[1646807728187,1.36762333,2713.1,2712.9,0.90192732]
[1646807728684,0.00919247,2713.1,2712.9,0.90192732]
[1646807728884,1.35843086,2713.2,2712.9,0.90192732]
[1646807729085,0.00186072,2713.1,2712.9,0.90192732]
[1646807729283,0.00186072,2713.1,2712.6,0.9218218]
[1646807729488,0.00186072,2713.1,2712.5,3.5]
[1646807730089,1.35843086,2713.2,2712.5,3.5]
[1646807730288,1.35843086,2713.2,2712.7,1.01808287]
[1646807730289,0.00186072,2712.9,2712.7,1.01808287]
[1646807730728,0.00186072,2712.9,2712.7,1.93991937]
[1646807731331,1.35843086,2713.2,2712.7,1.93991937]
[1646807731528,0.00186072,2712.9,2712.7,1.93991937]
[1646807731729,1.26029158,2713.2,2712.7,1.93991937]
[1646807732328,1.26029158,2713.2,2712.8,3.5]
[1646807732530,0.0816,2713.5,2712.8,3.5]
[1646807732727,0.0816,2713.5,2712.7,3.78336077]
[1646807733533,0.0816,2713.5,2712.7,1.93991937]
[1646807733933,0.00191849,2713.2,2712.7,1.93991937]
[1646807734383,0.00191849,2713.2,2712.6,1.2481]
[1646807734984,1.78556583,2713.3,2712.6,1.2481]
[1646807735182,0.00191849,2713.0,2712.6,1.2481]
[1646807736084,2.70759583,2713.4,2712.6,1.2481]
[1646807736382,0.00191846,2713.0,2712.6,1.2481]
[1646807737489,0.00190541,2713.0,2712.6,1.2481]
[1646807738526,2.78919583,2713.4,2712.6,1.2481]
[1646807738726,0.00190541,2713.0,2712.6,1.2481]
[1646807739731,1.3554494,2713.2,2712.6,1.2481]
[1646807739933,0.00190541,2713.0,2712.6,1.2481]
[1646807740334,0.00190541,2713.0,2712.1,6.0104]
[1646807740535,0.00190541,2713.0,2712.2,1.51151155]
[1646807740935,1.3554494,2713.1,2712.2,1.51151155]
[1646807741133,0.00190717,2713.0,2712.2,1.51151155]
[1646807741335,0.00190717,2713.0,2712.4,1.06386618]
[1646807742184,1.4371194,2713.2,2712.4,1.06386618]
[1646807742383,0.00190724,2713.0,2712.4,1.06386618]
[1646807743083,0.00190724,2713.0,2712.5,1.51133248]
[1646807743384,1.1629,2713.3,2712.5,1.51133248]
[1646807743584,0.00190724,2713.0,2712.5,5.01133248]
[1646807743785,0.00190724,2713.0,2712.6,1.51133248]
[1646807744187,0.00190724,2713.0,2712.6,2.43318188]
[1646807744387,0.00190724,2713.0,2712.6,0.9218494]
[1646807744588,1.1629,2713.3,2712.6,0.9218494]
[1646807744790,0.00190704,2713.0,2712.6,0.9218494]
[1646807745445,0.00190704,2713.0,2712.5,3.5]
[1646807745733,1.74059146,2713.4,2712.6,1.51127785]
[1646807745932,0.00190704,2713.0,2712.6,1.51127785]
[1646807746732,0.00190704,2713.0,2712.6,2.56215279]
[1646807746933,1.74059146,2713.4,2712.6,1.05087494]
[1646807747134,0.00190704,2713.0,2712.6,1.05087494]
[1646807747934,0.00190704,2713.0,2712.4,1.1751]
[1646807748134,0.00762718,2713.3,2712.5,1.5113991]
[1646807748135,1.3554494,2713.3,2712.5,1.5113991]
[1646807748335,0.00190708,2713.0,2712.4,1.1751]
[1646807748733,0.00190708,2713.0,2712.5,1.51141271]
[1646807748934,0.00190708,2713.0,2712.4,1.1751]
[1646807749381,1.3554494,2713.3,2712.4,1.1751]
[1646807749581,0.00190701,2713.0,2712.4,1.1751]
[1646807749985,0.00190701,2713.0,2712.5,0.01729864]
[1646807750383,0.00190701,2713.0,2712.5,3.51729864]
[1646807750583,1.4370694,2713.3,2712.5,0.01729864]
[1646807750783,0.00190704,2713.0,2712.5,0.01729864]
[1646807750982,0.00190704,2713.0,2712.5,3.51729864]
[1646807751182,0.00190704,2713.0,2712.5,0.01729864]
[1646807751786,1.74059146,2713.4,2712.5,0.01729864]
[1646807751987,0.00190704,2713.0,2712.6,1.51135231]
[1646807752186,0.00190704,2713.0,2712.5,0.01729864]
[1646807752586,0.00190704,2713.0,2712.5,3.51729864]
[1646807753044,1.74059146,2713.4,2712.5,0.01729864]
[1646807753240,0.00190704,2713.0,2712.5,0.01729864]
[1646807753443,0.00190704,2713.0,2712.5,3.51729864]
[1646807753640,0.00190704,2713.0,2712.6,1.5112974]
[1646807754243,1.74059146,2713.4,2712.6,1.5112974]
[1646807754445,0.00190708,2713.0,2712.5,3.5]
[1646807754644,0.00190708,2713.0,2712.6,1.51129327]
[1646807754847,0.00190708,2713.0,2712.4,1.1751]
[1646807755048,0.00190708,2713.0,2712.5,1.51129922]
[1646807755248,0.00190708,2713.0,2712.5,5.00974524]
[1646807755448,1.74059146,2713.4,2712.4,1.1751]
[1646807755751,0.001907,2713.0,2712.4,1.1751]
[1646807755948,0.001907,2713.0,2712.5,3.5]
[1646807756147,0.001907,2713.0,2712.4,1.1751]
[1646807756348,0.001907,2713.0,2712.5,3.5]
[1646807756547,1.74059146,2713.4,2712.5,3.5]
[1646807756779,1.74059146,2713.4,2712.4,1.1751]
[1646807756780,0.001907,2713.0,2712.4,1.1751]
[1646807756977,0.0027565,2713.0,2712.4,1.1751]
[1646807757179,0.0027565,2713.0,2712.5,3.5]
[1646807757784,0.0008495,2713.0,2712.5,3.5]
[1646807757984,0.00275654,2713.0,2712.5,3.5]
[1646807758986,0.0008495,2713.0,2712.5,3.5]
[1646807759185,0.00275654,2713.0,2712.5,3.5]
[1646807760185,0.0008495,2713.0,2712.5,3.5]
[1646807760439,0.00275654,2713.0,2712.4,1.1751]
[1646807761428,0.0008495,2713.0,2712.4,1.1751]
[1646807761630,0.00275651,2713.0,2712.4,1.1751]
[1646807762629,0.0008495,2713.0,2712.4,1.1751]
[1646807762829,0.0027565,2713.0,2712.4,1.1751]
[1646807763832,0.0008495,2713.0,2712.4,1.1751]
[1646807764282,0.0027565,2713.0,2712.4,1.1751]
[1646807764982,0.0008495,2713.0,2712.4,1.1751]
[1646807765181,0.0027565,2713.0,2712.4,1.1751]
[1646807766187,0.0008495,2713.0,2712.4,1.1751]
[1646807766386,0.00275651,2713.0,2712.4,1.1751]
[1646807766984,0.00275651,2713.0,2712.5,3.5]
[1646807767385,0.0008495,2713.0,2712.5,3.5]
[1646807767585,0.00275654,2713.0,2712.5,3.5]
[1646807768534,0.0008495,2713.0,2712.5,3.5]
[1646807768936,0.00275654,2713.0,2712.5,3.5]
[1646807769736,0.0008495,2713.0,2712.5,3.5]
[1646807770036,0.00275654,2713.0,2712.5,3.5]
[1646807771037,0.0008495,2713.0,2712.4,1.1751]
[1646807771240,0.00275654,2713.0,2712.4,1.1751]
[1646807772079,0.0008495,2713.0,2712.4,1.1751]
[1646807772379,1.34156963,2713.4,2712.4,1.1751]
[1646807772779,0.08217,2713.5,2712.4,1.1751]
[1646807773579,0.00190711,2713.1,2712.4,1.1751]
[1646807774483,0.0897973,2713.5,2712.5,3.5]
[1646807774484,0.08217,2713.5,2712.5,3.5]
[1646807774685,0.08217,2713.5,2713.0,1.10063299]
[1646807774985,0.0076273,2713.3,2713.0,1.10063299]
[1646807775829,0.08164,2713.6,2713.1,3.5]
[1646807776032,0.00190711,2713.3,2713.0,1.10063299]
[1646807776230,0.00190711,2713.3,2713.1,1.5110418]
[1646807776928,0.27887758,2713.9,2713.0,1.10063299]
[1646807777127,0.00191215,2713.3,2713.1,1.51102569]
[1646807777328,0.00191215,2713.3,2713.0,1.10063299]
[1646807777928,0.00191215,2713.3,2713.1,5.01101046]
[1646807778129,1.40252877,2714.1,2713.2,5.01101046]
[1646807778329,1.40252877,2714.1,2713.3,1.51101046]
[1646807778330,1.20998,2714.1,2713.3,1.51101046]
[1646807778528,0.00764747,2713.7,2713.4,3.5]
[1646807778729,0.00764747,2713.7,2713.5,1.51101046]
[1646807779184,0.00764747,2713.7,2713.4,3.5]
[1646807779385,0.0412394,2714.2,2713.3,1.196]
[1646807779584,0.00230406,2714.1,2713.3,4.696]
[1646807779784,0.00230406,2714.1,2713.3,1.196]
[1646807780387,1.3554834,2714.0,2713.3,1.196]
[1646807780788,0.00191141,2713.8,2713.3,1.196]
[1646807781585,0.00191141,2713.8,2712.9,5.9071]
[1646807781787,0.00191141,2713.8,2713.0,1.51108969]
[1646807781788,1.3554834,2713.8,2713.0,1.51108969]
[1646807781986,0.92384141,2713.7,2712.9,1.2285]
[1646807782186,2.27932481,2713.7,2712.9,1.2285]
[1646807782387,3.5,2713.6,2712.9,1.2285]
[1646807783030,0.92203,2713.4,2712.7,2.6455]
[1646807783230,3.5,2713.3,2712.8,1.51125546]
[1646807783628,3.8,2713.3,2712.8,1.51125546]
[1646807784437,0.00190698,2713.2,2712.8,1.51125546]
[1646807785436,3.5,2713.3,2712.8,1.51125546]
[1646807785636,0.00190698,2713.1,2712.8,1.51125546]
[1646807786688,3.8,2713.3,2712.8,1.51125546]
[1646807787091,0.00190698,2713.1,2712.8,1.51125546]
[1646807787690,3.8,2713.3,2712.8,1.51125546]
[1646807788091,0.00190766,2713.1,2712.8,1.51125546]
[1646807788492,0.00190766,2713.1,2712.4,0.2315]
[1646807788692,0.92216,2713.0,2712.5,1.5113161]
[1646807788891,1.22216,2713.0,2712.5,1.5113161]
[1646807789299,0.30190759,2713.0,2712.5,1.5113161]
[1646807789702,0.30190759,2713.0,2712.6,1.5113161]
[1646807789898,0.30190759,2713.0,2712.3,2.45509124]
[1646807790098,0.3,2713.0,2712.4,1.51133232]
[1646807790300,4.8,2713.3,2712.4,1.51133232]
[1646807790530,0.00190763,2713.0,2712.4,1.51133232]
[1646807791334,5.72206,2713.3,2712.4,1.51133232]
[1646807791533,0.00190747,2713.0,2712.4,1.50469132]
[1646807792131,0.0029089,2713.0,2712.4,1.50469132]
[1646807792533,0.00100143,2713.0,2712.4,1.50469132]
[1646807792732,0.0029089,2713.0,2712.4,1.50469132]
[1646807793735,0.00100143,2713.0,2712.4,1.50469132]
[1646807793935,0.0029089,2713.0,2712.4,1.50469132]
[1646807794180,0.00190747,2713.0,2712.4,1.50469132]
[1646807794989,4.88169,2713.3,2712.4,1.50469132]
[1646807795189,0.00190749,2713.0,2712.4,1.50469132]
[1646807795388,0.00190749,2713.0,2712.3,1.2432]
[1646807796089,4.88169,2713.3,2712.3,1.2432]
[1646807796090,3.88169,2713.3,2712.3,1.2432]
[1646807796489,0.00190745,2713.0,2712.3,1.2432]
[1646807797090,0.00190745,2713.0,2712.4,0.92188]
[1646807797289,0.00093884,2713.0,2712.4,0.92188]
[1646807797690,0.00284629,2713.0,2712.4,0.92188]
[1646807798632,0.00093884,2713.0,2712.3,3.08687]
[1646807798830,0.00284633,2713.0,2712.3,3.75507]
[1646807799437,4.2326834,2713.6,2712.4,10.0]
[1646807799736,3.1772,2713.6,2712.4,10.0]
[1646807800238,2.8772,2713.6,2712.4,10.0]
[1646807800436,2.8772,2713.6,2712.4,10.3682]
[1646807800837,2.8772,2713.6,2713.0,1.13531125]
[1646807801136,1.82233077,2713.7,2713.0,1.13531125]
[1646807801337,1.82233077,2713.7,2712.4,10.3682]
[1646807801538,2.12233077,2713.7,2712.4,10.3682]
[1646807801984,0.00100654,2713.6,2712.4,10.3682]
[1646807802386,0.00100654,2713.6,2713.0,1.09611268]
[1646807803085,0.00100654,2713.6,2712.5,0.92191]
[1646807803285,0.00100654,2713.6,2712.6,4.7124]
[1646807804489,0.00100654,2713.6,2712.9,1.0218476]
[1646807805739,0.00100654,2713.6,2713.0,3.5]
[1646807805942,0.00226997,2713.4,2713.0,3.5]
[1646807807044,0.38513737,2713.7,2712.9,2.8653376]
[1646807807045,0.00100451,2713.5,2712.9,2.8653376]
[1646807807241,0.00226997,2713.3,2712.9,2.8653376]
[1646807807847,0.00226997,2713.3,2713.0,3.5]
[1646807808043,0.00226997,2713.3,2712.9,2.8653376]
[1646807808241,0.00100451,2713.5,2712.9,2.8653376]
[1646807808242,0.00100451,2713.5,2713.0,3.5]
[1646807808442,0.00226989,2713.3,2713.0,3.5]
[1646807809042,0.00226989,2713.3,2712.9,2.8653376]
[1646807809285,0.00100451,2713.5,2712.9,2.8653376]
[1646807809687,0.00226993,2713.3,2712.9,2.8653376]
[1646807809886,0.00226993,2713.3,2713.0,3.5]
[1646807811688,0.00100451,2713.5,2713.0,3.5]
[1646807812088,0.00226993,2713.3,2713.0,3.5]
[1646807812690,0.00226993,2713.3,2712.9,3.2335376]
[1646807812945,0.00226993,2713.3,2713.0,5.34329]
[1646807814135,0.00100451,2713.5,2713.0,5.34329]
[1646807814338,0.00226993,2713.3,2713.0,5.34329]
[1646807815340,0.00100451,2713.5,2713.1,1.51084366]
[1646807815539,0.00226993,2713.3,2713.1,1.51084366]
[1646807816683,0.00100451,2713.5,2713.2,3.5]
[1646807816883,0.09067777,2714.0,2713.3,2.43248366]
[1646807817084,0.09067777,2714.0,2713.3,0.92164]
[1646807817683,0.00907777,2714.0,2713.3,0.92164]
[1646807817885,1.74050852,2714.1,2713.3,0.92164]
[1646807818083,0.00226997,2713.8,2713.3,0.92164]
[1646807818984,1.74050852,2714.1,2713.3,0.92164]
[1646807819183,1.74050852,2714.1,2713.3,4.42164]
[1646807819390,0.00226997,2713.7,2713.3,4.42164]
[1646807820191,1.74050852,2714.1,2713.3,4.42164]
[1646807820461,0.00226997,2713.6,2713.3,4.42164]
[1646807820650,0.00226997,2713.6,2713.4,1.51073525]
[1646807820851,0.00226997,2713.6,2713.5,3.5]
[1646807821350,1.3967228,2714.2,2713.5,3.5]
[1646807821550,0.00226997,2713.7,2713.5,3.5]
[1646807821950,0.00100489,2713.6,2713.5,3.5]
[1646807822153,0.00100489,2713.6,2713.5,3.49854865]
[1646807823955,0.00100489,2713.6,2713.5,5.00919788]
[1646807824790,0.00100489,2713.6,2713.5,5.00919929]
[1646807824991,0.00100489,2713.6,2713.5,3.49854865]
[1646807825191,0.00100489,2713.6,2713.5,5.00917605]
[1646807825590,0.00100489,2713.6,2713.5,6.19477605]
[1646807828046,1.4390234,2714.5,2713.6,6.5]
[1646807828047,0.03897135,2714.5,2713.6,6.5]
[1646807828245,0.0096524,2714.5,2713.8,0.92136]
[1646807828447,0.0096524,2714.5,2713.9,0.92135]
[1646807828944,0.0096524,2714.5,2713.9,1.22135]
[1646807829547,0.0096524,2714.5,2714.2,1.11206784]
[1646807831353,0.0096524,2714.5,2714.1,0.3]
[1646807831789,0.0096524,2714.5,2713.9,4.72135]
[1646807831992,0.0193048,2714.9,2714.0,6.5]
[1646807832193,5.27100029,2715.5,2714.5,0.92118]
[1646807832391,5.27100029,2715.5,2715.0,1.05895641]
[1646807832593,3.91914709,2715.5,2715.1,3.5]
[1646807832995,2.97180093,2716.2,2715.1,3.5]
[1646807833192,0.03803,2716.2,2715.1,4.4208538]
[1646807833392,0.03803,2716.2,2715.4,0.92082]
[1646807833393,0.04035806,2715.8,2715.4,0.92082]
[1646807834998,0.04035806,2715.8,2715.4,1.84164]
[1646807835297,1.80247093,2716.4,2715.4,1.84164]
[1646807835537,2.10247093,2716.4,2715.6,0.92083]
[1646807835737,2.26527032,2716.4,2715.6,0.92083]
[1646807835939,0.16279939,2716.4,2715.6,0.92083]
[1646807836641,2.12286833,2716.6,2715.9,0.92072]
[1646807836836,2.12286833,2716.6,2715.8,2.76226]
[1646807837036,1.82286833,2716.6,2715.8,2.76226]
[1646807837239,0.0203974,2716.6,2716.1,0.91754232]
[1646807837439,0.0203974,2716.6,2715.8,2.76226]
[1646807837738,0.0203974,2716.6,2715.8,1.84143]
[1646807837937,0.0203974,2716.6,2715.5,1.2372]
[1646807838539,1.82286833,2716.6,2715.6,1.22851062]
[1646807838945,1.98566772,2716.6,2715.6,1.22851062]
[1646807839389,2.90660772,2716.6,2715.6,1.22851062]
[1646807839591,0.00222809,2716.2,2715.6,1.22851062]
[1646807840588,3.29224207,2716.6,2715.6,1.22851062]
[1646807840789,0.00222792,2716.2,2715.6,1.22851062]
[1646807841793,0.00087578,2716.5,2715.6,1.22851062]
[1646807841990,0.00222792,2716.2,2715.6,4.72851062]
[1646807842191,0.00222792,2716.2,2715.6,4.70833062]
[1646807842391,0.00222792,2716.2,2715.6,5.62916062]
[1646807843040,0.00087578,2716.5,2715.6,5.62916062]
[1646807843242,0.00222792,2716.2,2715.6,5.62916062]
[1646807843440,0.00222792,2716.2,2715.6,4.70833062]
[1646807843639,0.00222792,2716.2,2715.6,1.20833062]
[1646807844244,0.00087578,2716.5,2715.6,4.70833062]
[1646807844449,0.00222792,2716.2,2715.6,4.70833062]
[1646807845344,0.00087578,2716.5,2715.8,0.92083]
[1646807845547,0.00222792,2716.2,2715.9,0.92081]
[1646807846544,0.00087578,2716.5,2715.9,0.92081]
[1646807846785,0.00222804,2716.2,2715.9,0.92081]
[1646807846990,0.00086969,2716.1,2715.9,0.92081]
[1646807847786,0.00086969,2716.1,2715.6,1.20833062]
[1646807848186,0.00086969,2716.1,2715.6,2.12919062]
[1646807848386,0.00086969,2716.1,2715.6,5.62919062]
[1646807848585,0.00086969,2716.1,2715.6,2.12919062]
[1646807848986,0.00086969,2716.1,2715.6,3.05002062]
[1646807849793,0.00086969,2716.1,2715.6,2.12919062]
[1646807849994,0.00086969,2716.1,2715.6,1.20833062]
[1646807850836,0.00086969,2716.1,2715.6,2.12919062]
[1646807851537,0.00086969,2716.1,2715.5,1.55738]
[1646807851837,0.00222788,2716.2,2715.5,1.25738]
[1646807852437,0.00222788,2716.2,2715.5,2.17828]
[1646807852737,0.00222788,2716.2,2715.6,1.9507357]
[1646807853738,0.86883114,2716.6,2715.7,3.5]
[1646807853938,0.86787114,2716.6,2715.7,3.5]
[1646807854186,0.00222792,2716.2,2715.9,1.84159]
[1646807854989,0.86787114,2716.6,2715.9,1.84159]
[1646807855190,0.00222804,2716.2,2715.9,1.84159]
[1646807855991,0.00222804,2716.2,2715.9,0.9208]
[1646807856191,0.86787114,2716.6,2715.9,0.9208]
[1646807856392,0.00222804,2716.2,2715.9,0.9208]
[1646807856993,0.00086969,2716.1,2715.9,0.9208]
[1646807858135,0.00086969,2716.1,2715.9,1.2208]
[1646807858735,0.00086969,2716.1,2715.9,1.21945837]
[1646807859540,0.00086969,2716.1,2715.9,0.3]
[1646807859740,0.00086969,2716.1,2715.8,2.14155]
[1646807860340,0.00086969,2716.1,2715.8,2.14070623]
[1646807860948,0.21093755,2716.7,2715.8,2.14070623]
[1646807860949,2.62959238,2718.4,2716.0,6.5]
[1646807861150,8.70406869,2718.8,2716.0,6.5]
[1646807861151,4.48333209,2719.3,2717.3,0.01267251]
[1646807861343,4.48333209,2719.3,2716.1,21.98019687]
[1646807861344,2.7,2718.9,2717.5,0.92018]
[1646807861552,1.07264552,2719.6,2718.8,0.01260613]
[1646807861821,0.80446214,2721.1,2718.8,0.01260613]
[1646807861993,0.80446214,2721.1,2720.4,5.565]
[1646807861994,0.02854924,2721.0,2720.4,5.565]
[1646807862213,0.04637536,2721.1,2720.8,5.565]
[1646807862214,0.06447646,2721.1,2720.8,5.565]
[1646807862391,2.98214978,2722.2,2720.8,5.565]
[1646807862392,0.073066,2722.4,2721.2,0.74604157]
[1646807862693,0.073066,2722.4,2721.3,4.1287]
[1646807862890,0.02452232,2722.0,2721.3,4.1287]
[1646807863090,0.04726136,2721.8,2721.6,0.01213594]
[1646807863489,0.04726136,2721.8,2721.5,0.445]
[1646807863690,0.04726136,2721.8,2721.5,0.91906]
[1646807864097,0.04726136,2721.8,2721.4,1.83782]
[1646807864294,0.04726136,2721.8,2721.3,1.83812]
[1646807864494,0.04726136,2721.8,2721.2,0.74604157]
[1646807864895,6.5,2721.7,2720.5,2.75736]
[1646807865101,6.5,2721.7,2719.5,3.5]
[1646807865102,0.01211908,2721.2,2719.5,3.5]
[1646807865298,0.01211908,2721.2,2720.2,2.41058853]
[1646807865299,11.24,2720.8,2720.2,2.41058853]
[1646807865545,3.945,2720.7,2720.2,2.41058853]
[1646807865744,4.945,2720.7,2720.2,2.41058853]
[1646807865945,0.5,2720.3,2720.2,2.41058853]
[1646807866544,0.64437308,2720.3,2719.7,1.5969722]
[1646807866742,0.64437308,2720.3,2719.3,1.83937]
[1646807866943,1.21194884,2719.8,2719.3,1.83937]
[1646807867144,0.64533308,2720.3,2719.8,0.39577484]
[1646807867347,0.0021838,2720.1,2719.8,0.39577484]
[1646807867545,0.10391976,2720.1,2719.8,0.39577484]
[1646807867847,0.10391976,2720.1,2719.2,1.52101793]
[1646807867848,10.745,2720.0,2719.2,1.52101793]
[1646807868044,0.89633489,2719.7,2719.2,1.52101793]
[1646807868244,3.945,2719.6,2719.2,1.52101793]
[1646807868446,0.84673596,2719.6,2719.2,1.52101793]
[1646807869300,4.34673596,2719.6,2719.2,1.52101793]
[1646807869698,0.0021838,2719.5,2719.2,1.52101793]
[1646807870501,0.06673556,2719.5,2719.2,1.52101793]
[1646807870698,0.06455176,2719.5,2719.2,6.65683169]
[1646807870900,0.06455176,2719.5,2719.3,1.52094453]
[1646807871300,0.06455176,2719.5,2719.4,1.32725678]
[1646807872501,0.06455176,2719.5,2719.4,7.25920253]
[1646807874240,0.06455176,2719.5,2719.4,10.75920253]
[1646807874439,0.0371842,2719.6,2719.5,0.0645]
[1646807874640,0.11724308,2719.6,2719.5,9.49620747]
[1646807875648,4.031e-05,2719.7,2719.6,6.5]
[1646807875843,4.031e-05,2719.7,2719.6,14.08578733]
[1646807876047,4.031e-05,2719.7,2719.6,14.38578733]
[1646807876240,0.00816001,2720.1,2719.7,6.5]
[1646807876441,0.00816001,2720.1,2719.8,5.19526467]
[1646807876687,0.0305852,2720.6,2719.9,0.90395459]
[1646807876887,0.0305852,2720.6,2720.0,15.1082]
[1646807877087,0.0305852,2720.6,2720.0,4.82700065]
[1646807877286,0.0305852,2720.6,2720.0,5.19520065]
[1646807877688,0.0305852,2720.6,2720.0,6.11452435]
[1646807877989,0.0305852,2720.6,2720.1,21.02459364]
[1646807878191,0.0305852,2720.6,2720.2,16.84993701]
[1646807878387,0.0305852,2720.6,2720.3,6.5]
[1646807878588,0.02718296,2721.4,2720.4,24.45994563]
[1646807878791,0.06077688,2721.4,2720.6,0.9191751]
[1646807878989,0.06077688,2721.4,2720.8,1.24722333]
[1646807879393,0.06339105,2721.4,2720.9,4.52892422]
[1646807879692,0.06339105,2721.4,2720.9,3.08537318]
[1646807879892,0.06339105,2721.4,2721.0,1.24710303]
[1646807880292,0.06077688,2721.4,2721.0,0.24710303]
[1646807880540,0.0021787,2721.3,2721.0,0.24710303]